fUSD/lending_fUSD_20251109
["ID","MTS","AMOUNT","RATE_DAILY","PERIOD"]
[393454474,1762678249527,-176.311602,0.00019,2]
[393454475,1762678249537,-172.277072,0.00019,2]
[393454476,1762678249546,-176.311602,0.00019,2]
[393454477,1762678249556,-176.311602,0.00019,2]
[393454478,1762678249572,-176.311602,0.00019,2]
[393454479,1762678249582,-259.568845,0.00019,2]
[393454480,1762678249593,-151.0,0.00019,2]
[393454481,1762678249602,-151.0,0.00019,2]
[393454482,1762678249612,-170.468976,0.00019,2]
[393454483,1762678249622,-170.468976,0.00019,2]
[393454484,1762678249632,-995.65575,0.00019,2]
[393454485,1762678249641,-170.468976,0.00019,2]
[393454486,1762678249651,-170.468976,0.00019,2]
[393454487,1762678249660,-153.765423,0.00019,2]
[393454488,1762678249670,-995.65575,0.00019,2]
[393454489,1762678249679,-151.0,0.00019,2]
[393454490,1762678249688,-995.65575,0.00019,2]
[393454491,1762678249699,-154.628871,0.00019,2]
[393454492,1762678249709,-995.65575,0.00019,2]
[393454493,1762678249720,-154.628871,0.00019,2]
[393454494,1762678249730,-2567.176262,0.00019,2]
[393454495,1762678249739,-154.628871,0.00019,2]
[393454496,1762678249748,-2567.176262,0.00019,2]
[393454497,1762678249761,-154.628871,0.00019,2]
[393454498,1762678249771,-191.059476,0.00019,2]
[393454499,1762678249781,-151.0,0.00019,2]
[393454500,1762678249790,-154.109914,0.00019,2]
[393454501,1762678249800,-191.059476,0.00019,2]
[393454502,1762678249809,-2567.176262,0.00019,2]
[393454503,1762678249817,-151.0,0.00019,2]
[393454504,1762678249828,-191.059476,0.00019,2]
[393454505,1762678249837,-2567.176262,0.00019,2]
[393454506,1762678249846,-191.059476,0.00019,2]
[393454507,1762678249855,-151.0,0.00019,2]
[393454508,1762678249865,-336.546776,0.00019,2]
[393454509,1762678249874,-156.220285,0.00019,2]
[393454510,1762678249884,-336.546776,0.00019,2]
[393454511,1762678249894,-1971.292487,0.00019,2]
[393454512,1762678249903,-151.0,0.00019,2]
[393454513,1762678249913,-336.546776,0.00019,2]
[393454514,1762678249922,-336.546776,0.00019,2]
[393454515,1762678249931,-1971.292487,0.00019,2]
[393454516,1762678249940,-338.9931,0.00019,2]
[393454517,1762678249949,-1971.292487,0.00019,2]
[393454518,1762678249958,-1971.292487,0.00019,2]
[393454519,1762678249967,-338.9931,0.00019,2]
[393454520,1762678249977,-338.9931,0.00019,2]
[393454521,1762678249986,-298.153219,0.00019,2]
[393454522,1762678249996,-338.9931,0.00019,2]
[393454523,1762678250006,-298.153219,0.00019,2]
[393454524,1762678250016,-298.153219,0.00019,2]
[393454525,1762678250026,-298.153219,0.00019,2]
[393454526,1762678250035,-151.0,0.00019,2]
[393454527,1762678250046,-151.0,0.00019,2]
[393454528,1762678250055,-151.0,0.00019,2]
[393454529,1762678250065,-151.0,0.00019,2]
[393454530,1762678250075,-151.0,0.00019,2]
[393454531,1762678250085,-218.072031,0.00019,2]
[393454532,1762678250094,-151.0,0.00019,2]
[393454533,1762678250105,-151.0,0.00019,2]
[393454534,1762678250116,-151.0,0.00019,2]
[393454535,1762678250127,-151.0,0.00019,2]
[393454536,1762678250137,-151.0,0.00019,2]
[393454537,1762678250147,-151.0,0.00019,2]
[393454538,1762678250158,-151.0,0.00019,2]
[393454539,1762678250168,-151.0,0.00019,2]
[393454540,1762678250177,-151.0,0.00019,2]
[393454541,1762678250187,-151.0,0.00019,2]
[393454542,1762678250197,-151.0,0.00019,2]
[393454543,1762678250208,-151.0,0.00019,2]
[393454544,1762678250218,-446.0,0.00019002,2]
[393454545,1762678250227,-395.34756632,0.00019002,2]
[393454546,1762678250238,-166.66,0.00019036,2]
[393454547,1762678250339,-1498.39,0.00019096,2]
[393454548,1762678250349,-349.34,0.00019114,2]
[393454549,1762678250358,-168.0,0.00019121,2]
[393454550,1762678250368,-446.0,0.00019139,2]
[393454551,1762678250378,-298.73583898,0.00019167,2]
[393454552,1762678250388,-3372.45,0.00019178,2]
[393454553,1762678250398,-2327.89,0.00019178,2]
[393454554,1762678250408,-151.0,0.00019178,2]
[393454555,1762678250418,-151.0,0.00019178,2]
[393454556,1762678250428,-161.133918,0.00019178,2]
[393454557,1762678250437,-187.260727,0.00019178,2]
[393454558,1762678250447,-187.260727,0.00019178,2]
[393454559,1762678250457,-187.260727,0.00019178,2]
[393454560,1762678250466,-187.260727,0.00019178,2]
[393454561,1762678250477,-187.260727,0.00019178,2]
[393454562,1762678250487,-187.260727,0.00019178,2]
[393454563,1762678250497,-187.260727,0.00019178,2]
[393454564,1762678250507,-187.260727,0.00019178,2]
[393454565,1762678250516,-187.260727,0.00019178,2]
[393454566,1762678250526,-187.260727,0.00019178,2]
[393454567,1762678250535,-187.260727,0.00019178,2]
[393454568,1762678250545,-187.260727,0.00019178,2]
[393454569,1762678250555,-151.0,0.00019178,2]
[393454570,1762678250564,-151.0,0.00019178,2]
[393454571,1762678250574,-151.0,0.00019178,2]
[393454572,1762678250587,-151.0,0.00019178,2]
[393454573,1762678250599,-151.0,0.00019178,2]
[393454574,1762678250609,-151.0,0.00019178,2]
[393454575,1762678250619,-290.456169,0.00019178,2]
[393454576,1762678250628,-169.64122107,0.0001926,2]
[393454577,1762678250638,-24895.2585217,0.00019263,2]
[393454578,1762678250647,-446.0,0.00019276,2]
[393454579,1762678250657,-1498.39,0.0001937,2]
[393454580,1762678250667,-2334.97782505,0.00019412,2]
[393454581,1762678250677,-1508.31279467,0.00019412,2]
[393454582,1762678250687,-446.0,0.00019413,2]
[393454583,1762678250697,-1000.0,0.00019438,2]
[393454584,1762678250706,-166.68,0.00019456,2]
[393454585,1762678250717,-290.47,0.00019472,2]
[393454586,1762678250727,-446.0,0.0001955,2]
[393454587,1762678250736,-166.66,0.00019607,2]
[393454588,1762678250746,-232.8762014,0.00019627,2]
[393454589,1762678250759,-1498.39,0.00019644,2]
[393454590,1762678250768,-150.05270425,0.00019664,5]
[393454591,1762678250777,-178.62,0.00019672,2]
[393454592,1762678250787,-446.0,0.00019687,2]
[393454593,1762678250797,-156.203306,0.00019722,2]
[393454594,1762678250806,-1028.741315,0.00019722,2]
[393454595,1762678250815,-285.051956,0.00019722,2]
[393454596,1762678250824,-875.16678,0.00019722,2]
[393454597,1762678250836,-300.0,0.00019763,2]
[393454598,1762678250846,-452.0,0.00019824,2]
[393454599,1762678250855,-4875.75949894,0.000199,3]
[393454600,1762678250864,-1498.39,0.00019918,2]
[393454601,1762678250873,-3098.0,0.00019966,2]
[393454602,1762678250883,-576.362,0.00019966,2]
[393454603,1762678250892,-608.0,0.00019966,2]
[393454604,1762678250901,-1316.0,0.00019966,2]
[393454605,1762678250911,-3545.534,0.00019966,2]
[393454606,1762678250919,-1602.924,0.00019966,2]
[393454607,1762678250928,-820.0,0.00019966,2]
[393454608,1762678250937,-1273.0,0.00019966,2]
[393454609,1762678250947,-813.0,0.00019966,2]
[393454610,1762678250956,-2142.0,0.00019966,2]
[393454611,1762678250966,-559.0,0.00019966,2]
[393454612,1762678250975,-6478.0,0.00019966,2]
[393454613,1762678250985,-6661.0,0.00019966,2]
[393454614,1762678250994,-10822.52726064,0.0002,2]
[393454615,1762678251004,-1519.82789773,0.0002,2]
[393454616,1762678251013,-1452.01192522,0.0002,5]
[393454617,1762678251023,-25367.37066554,0.0002,2]
[393454618,1762678251032,-57593.22134348,0.0002,5]
[393454619,1762678251042,-8300.0,0.0002,4]
[393454620,1762678251051,-3950.0,0.0002,2]
[393454621,1762678251060,-7226.64036279,0.0002,2]
[393454622,1762678251070,-1283.33163411,0.0002,2]
[393454623,1762678251079,-7311.58635946,0.0002,2]
[393454624,1762678251090,-2172.02838569,0.0002,3]
[393454625,1762678251099,-10165.86502198,0.0002,2]
[393454626,1762678251109,-1035.85294866,0.0002,2]
[393454627,1762678251118,-2838.66526332,0.0002,2]
[393454628,1762678251127,-8733.23470703,0.0002,2]
[393454629,1762678251137,-482.94553,0.0002,2]
[393454630,1762678251147,-9934.0,0.0002,2]
[393454631,1762678251158,-1000.0,0.0002,7]
[393454632,1762678251167,-9969.0,0.0002,7]
[393454633,1762678251177,-9009.50151639,0.0002001,2]
[393454634,1762678251186,-259.0,0.00020071,2]
[393454635,1762678251196,-200.0,0.00020071,2]
[393454636,1762678251206,-200.0,0.00020071,2]
[393454637,1762678251216,-187.809,0.00020071,2]
[393454638,1762678251226,-250.0,0.00020071,2]
[393454639,1762678251236,-216.508,0.00020071,2]
[393454640,1762678251246,-152.787,0.00020071,2]
[393454641,1762678251256,-250.0,0.00020071,2]
[393454642,1762678251265,-288.312,0.00020071,2]
[393454643,1762678251275,-188.931,0.00020071,2]
[393454644,1762678251285,-269.989,0.00020071,2]
[393454645,1762678251295,-162.145,0.00020071,2]
[393454646,1762678251304,-209.91,0.00020071,2]
[393454647,1762678251314,-266.384,0.00020071,2]
[393454648,1762678251323,-221.249,0.00020071,2]
[393454649,1762678251334,-773.0,0.000201,2]
[393454650,1762678251343,-1000.0,0.00020116,2]
[393454651,1762678251353,-500.0,0.00020166,2]
[393454652,1762678251363,-166.66,0.00020179,2]
[393454653,1762678251373,-1000.0,0.00020187,2]
[393454654,1762678251382,-1498.39,0.00020192,2]
[393454655,1762678251393,-477.41,0.00020247,2]
[393454656,1762678251403,-477.41,0.00020247,2]
[393454657,1762678251412,-1000.0,0.00020357,2]
[393454658,1762678251422,-290.47,0.00020357,2]
[393454659,1762678251432,-349.34,0.00020379,2]
[393454660,1762678251443,-1498.39,0.00020466,2]
[393454661,1762678251453,-823.0,0.00020483,2]
[393454662,1762678251463,-21315.44,0.00020548,2]
[393454663,1762678251473,-151.0,0.00020548,7]
[393454664,1762678251482,-151.0,0.00020548,7]
[393454665,1762678251492,-151.0,0.00020548,7]
[393454666,1762678251502,-151.0,0.00020548,7]
[393454667,1762678251513,-244.49106,0.00020548,7]
[393454668,1762678251523,-151.0,0.00020548,7]
[393454669,1762678251532,-151.0,0.00020548,7]
[393454670,1762678251542,-151.0,0.00020548,7]
[393454671,1762678251552,-151.0,0.00020548,7]
[393454672,1762678251561,-183.538171,0.00020548,7]
[393454673,1762678251571,-151.0,0.00020548,7]
[393454674,1762678251580,-151.0,0.00020548,7]
[393454675,1762678251590,-153.443058,0.00020548,7]
[393454676,1762678251600,-151.0,0.00020548,7]
[393454677,1762678251609,-172.097018,0.00020548,7]
[393454678,1762678251619,-161.189237,0.00020548,7]
[393454679,1762678251628,-285.070842,0.00020548,7]
[393454680,1762678251637,-151.0,0.00020548,7]
[393454681,1762678251646,-151.0,0.00020548,7]
[393454682,1762678251656,-151.0,0.00020548,7]
[393454683,1762678251665,-151.0,0.00020548,7]
[393454684,1762678251674,-151.0,0.00020548,7]
[393454685,1762678251765,-151.0,0.00020548,7]
[393454686,1762678251775,-151.0,0.00020548,7]
[393454687,1762678251784,-151.0,0.00020548,7]
[393454688,1762678251794,-151.0,0.00020548,7]
[393454689,1762678251803,-151.0,0.00020548,7]
[393454690,1762678251811,-155.675585,0.00020548,7]
[393454691,1762678251821,-151.0,0.00020548,7]
[393454692,1762678251831,-151.0,0.00020548,7]
[393454693,1762678251840,-151.0,0.00020548,7]
[393454694,1762678251849,-151.0,0.00020548,7]
[393454695,1762678251858,-203.451697,0.00020548,7]
[393454696,1762678251868,-154.182677,0.00020548,7]
[393454697,1762678251877,-151.0,0.00020548,7]
[393454698,1762678251886,-161.845655,0.00020548,7]
[393454699,1762678251896,-151.0,0.00020548,7]
[393454700,1762678251906,-151.0,0.00020548,7]
[393454701,1762678251915,-151.0,0.00020548,7]
[393454702,1762678251924,-151.0,0.00020548,7]
[393454703,1762678251933,-151.0,0.00020548,7]
[393454704,1762678251943,-151.0,0.00020548,7]
[393454705,1762678251952,-151.0,0.00020548,7]
[393454706,1762678251962,-151.0,0.00020548,7]
[393454707,1762678251971,-151.0,0.00020548,7]
[393454708,1762678251980,-151.0,0.00020548,7]
[393454709,1762678251989,-151.0,0.00020548,7]
[393454710,1762678251999,-154.803535,0.00020548,7]
[393454711,1762678252009,-151.0,0.00020548,7]
[393454712,1762678252019,-151.0,0.00020548,7]
[393454713,1762678252028,-151.0,0.00020548,7]
[393454714,1762678252038,-151.677788,0.00020548,7]
[393454715,1762678252047,-151.0,0.00020548,7]
[393454716,1762678252056,-151.0,0.00020548,7]
[393454717,1762678252066,-151.0,0.00020548,7]
[393454718,1762678252076,-151.0,0.00020548,7]
[393454719,1762678252085,-151.0,0.00020548,7]
[393454720,1762678252095,-155.663389,0.00020548,7]
[393454721,1762678252104,-151.0,0.00020548,7]
[393454722,1762678252114,-151.0,0.00020548,7]
[393454723,1762678252123,-151.0,0.00020548,7]
[393454724,1762678252132,-151.0,0.00020548,7]
[393454725,1762678252142,-161.290265,0.00020548,7]
[393454726,1762678252151,-151.0,0.00020548,7]
[393454727,1762678252162,-153.618254,0.00020548,7]
[393454728,1762678252171,-151.0,0.00020548,7]
[393454729,1762678252181,-151.0,0.00020548,7]
[393454730,1762678252192,-153.618254,0.00020548,7]
[393454731,1762678252204,-151.0,0.00020548,7]
[393454732,1762678252215,-151.0,0.00020548,7]
[393454733,1762678252227,-153.618254,0.00020548,7]
[393454734,1762678252237,-151.0,0.00020548,7]
[393454735,1762678252247,-151.0,0.00020548,7]
[393454736,1762678252257,-153.618254,0.00020548,7]
[393454737,1762678252266,-151.0,0.00020548,7]
[393454738,1762678252275,-288.94397892,0.00020548,7]
[393454739,1762678252285,-151.0,0.00020548,7]
[393454740,1762678252294,-151.0,0.00020548,7]
[393454741,1762678252304,-151.0,0.00020548,7]
[393454742,1762678252313,-151.0,0.00020548,7]
[393454743,1762678252324,-179.291172,0.00020548,7]
[393454744,1762678252334,-151.0,0.00020548,7]
[393454745,1762678252343,-151.0,0.00020548,7]
[393454746,1762678252352,-151.0,0.00020548,7]
[393454747,1762678252362,-151.0,0.00020548,7]
[393454748,1762678252372,-151.0,0.00020548,7]
[393454749,1762678252382,-151.0,0.00020548,7]
[393454750,1762678252391,-151.0,0.00020548,7]
[393454751,1762678252400,-151.0,0.00020548,7]
[393454752,1762678252411,-151.0,0.00020548,7]
[393454753,1762678252420,-212.837481,0.00020548,7]
[393454754,1762678252430,-212.837481,0.00020548,7]
[393454755,1762678252439,-212.837481,0.00020548,7]
[393454756,1762678252449,-151.0,0.00020548,7]
[393454757,1762678252458,-212.837481,0.00020548,7]
[393454758,1762678252467,-273.112623,0.00020548,7]
[393454759,1762678252476,-151.0,0.00020548,7]
[393454760,1762678252485,-151.0,0.00020548,7]
[393454761,1762678252494,-151.0,0.00020548,7]
[393454762,1762678252504,-151.0,0.00020548,7]
[393454763,1762678252513,-151.0,0.00020548,7]
[393454764,1762678252522,-151.0,0.00020548,7]
[393454765,1762678252532,-160.562719,0.00020548,7]
[393454766,1762678252544,-214.43224,0.00020548,7]
[393454767,1762678252554,-151.0,0.00020548,7]
[393454768,1762678252563,-214.43224,0.00020548,7]
[393454769,1762678252572,-214.43224,0.00020548,7]
[393454770,1762678252582,-214.43224,0.00020548,7]
[393454771,1762678252591,-156.672415,0.00020548,7]
[393454772,1762678252600,-151.0,0.00020548,7]
[393454773,1762678252610,-274.409551,0.00020548,7]
[393454774,1762678252619,-151.0,0.00020548,7]
[393454775,1762678252628,-206.496713,0.00020548,7]
[393454776,1762678252637,-206.496713,0.00020548,7]
[393454777,1762678252646,-206.496713,0.00020548,7]
[393454778,1762678252657,-151.0,0.00020548,7]
[393454779,1762678252667,-206.496713,0.00020548,7]
[393454780,1762678252676,-151.0,0.00020548,7]
[393454781,1762678252686,-151.0,0.00020548,7]
[393454782,1762678252696,-151.0,0.00020548,7]
[393454783,1762678252706,-230.795341,0.00020548,7]
[393454784,1762678252715,-165.68074,0.00020548,7]
[393454785,1762678252724,-151.0,0.00020548,7]
[393454786,1762678252733,-285.445704,0.00020548,7]
[393454787,1762678252747,-151.0,0.00020548,7]
[393454788,1762678252761,-151.0,0.00020548,7]
[393454789,1762678252770,-151.0,0.00020548,7]
[393454790,1762678252779,-151.0,0.00020548,7]
[393454791,1762678252788,-151.0,0.00020548,7]
[393454792,1762678252798,-151.0,0.00020548,7]
[393454793,1762678252807,-151.0,0.00020548,7]
[393454794,1762678252816,-151.0,0.00020548,7]
[393454795,1762678252826,-151.0,0.00020548,7]
[393454796,1762678252836,-170.560163,0.00020548,7]
[393454797,1762678252845,-151.0,0.00020548,7]
[393454798,1762678252854,-151.0,0.00020548,7]
[393454799,1762678252864,-153.227742,0.00020548,7]
[393454800,1762678252873,-153.227742,0.00020548,7]
[393454801,1762678252882,-153.227742,0.00020548,7]
[393454802,1762678252891,-151.0,0.00020548,7]
[393454803,1762678252901,-153.227742,0.00020548,7]
[393454804,1762678252911,-151.0,0.00020548,7]
[393454805,1762678252920,-271.006298,0.00020548,7]
[393454806,1762678252929,-151.0,0.00020548,7]
[393454807,1762678252942,-161.438717,0.00020548,7]
[393454808,1762678252951,-187.260727,0.00020548,7]
[393454809,1762678252960,-187.260727,0.00020548,7]
[393454810,1762678252970,-187.260727,0.00020548,7]
[393454811,1762678252980,-187.260727,0.00020548,7]
[393454812,1762678252989,-151.0,0.00020548,7]
[393454813,1762678252999,-151.0,0.00020548,7]
[393454814,1762678253092,-151.0,0.00020548,7]
[393454815,1762678253102,-151.0,0.00020548,7]
[393454816,1762678253114,-151.0,0.00020548,7]
[393454817,1762678253124,-151.0,0.00020548,7]
[393454818,1762678253135,-151.0,0.00020548,7]
[393454819,1762678253145,-684.140118,0.00020548,7]
[393454820,1762678253155,-151.0,0.00020548,7]
[393454821,1762678253165,-684.140118,0.00020548,7]
[393454822,1762678253176,-684.140118,0.00020548,7]
[393454823,1762678253186,-684.140118,0.00020548,7]
[393454824,1762678253196,-160.214749,0.00020548,7]
[393454825,1762678253206,-151.0,0.00020548,7]
[393454826,1762678253216,-151.0,0.00020548,7]
[393454827,1762678253226,-1048.266309,0.00020548,7]
[393454828,1762678253236,-1048.266309,0.00020548,7]
[393454829,1762678253246,-1048.266309,0.00020548,7]
[393454830,1762678253256,-151.0,0.00020548,7]
[393454831,1762678253266,-151.0,0.00020548,7]
[393454832,1762678253277,-1048.266309,0.00020548,7]
[393454833,1762678253287,-151.0,0.00020548,7]
[393454834,1762678253297,-151.0,0.00020548,7]
[393454835,1762678253306,-151.0,0.00020548,7]
[393454836,1762678253317,-281.786286,0.00020548,7]
[393454837,1762678253326,-151.0,0.00020548,7]
[393454838,1762678253336,-281.786286,0.00020548,7]
[393454839,1762678253346,-166.784343,0.00020548,7]
[393454840,1762678253356,-255.720552,0.00020548,7]
[393454841,1762678253366,-158.424085,0.00020548,7]
[393454842,1762678253376,-281.786286,0.00020548,7]
[393454843,1762678253386,-166.784343,0.00020548,7]
[393454844,1762678253396,-255.720552,0.00020548,7]
[393454845,1762678253406,-255.720552,0.00020548,7]
[393454846,1762678253417,-151.0,0.00020548,7]
[393454847,1762678253427,-158.424085,0.00020548,7]
[393454848,1762678253437,-166.784343,0.00020548,7]
[393454849,1762678253447,-281.786286,0.00020548,7]
[393454850,1762678253456,-255.720552,0.00020548,7]
[393454851,1762678253466,-151.0,0.00020548,7]
[393454852,1762678253475,-649.096421,0.00020548,7]
[393454853,1762678253485,-158.424085,0.00020548,7]
[393454854,1762678253495,-166.784343,0.00020548,7]
[393454855,1762678253513,-151.0,0.00020548,7]
[393454856,1762678253526,-160.974912,0.00020548,7]
[393454857,1762678253537,-151.0,0.00020548,7]
[393454858,1762678253547,-649.096421,0.00020548,7]
[393454859,1762678253557,-241.372738,0.00020548,7]
[393454860,1762678253566,-158.424085,0.00020548,7]
[393454861,1762678253576,-151.0,0.00020548,7]
[393454862,1762678253586,-151.0,0.00020548,7]
[393454863,1762678253597,-241.372738,0.00020548,7]
[393454864,1762678253607,-151.0,0.00020548,7]
[393454865,1762678253617,-649.096421,0.00020548,7]
[393454866,1762678253628,-241.372738,0.00020548,7]
[393454867,1762678253637,-649.096421,0.00020548,7]
[393454868,1762678253647,-241.372738,0.00020548,7]
[393454869,1762678253657,-688.396057,0.00020548,7]
[393454870,1762678253667,-688.396057,0.00020548,7]
[393454871,1762678253676,-151.0,0.00020548,7]
[393454872,1762678253687,-151.0,0.00020548,7]
[393454873,1762678253709,-688.396057,0.00020548,7]
[393454874,1762678253733,-688.396057,0.00020548,7]
[393454875,1762678253756,-262.253714,0.00020548,7]
[393454876,1762678253780,-1031.362102,0.00020548,7]
[393454877,1762678253799,-1031.362102,0.00020548,7]
[393454878,1762678253821,-160.539842,0.00020548,7]
[393454879,1762678253844,-696.053668,0.00020548,7]
[393454880,1762678253863,-1031.362102,0.00020548,7]
[393454881,1762678253884,-696.053668,0.00020548,7]
[393454882,1762678253904,-1031.362102,0.00020548,7]
[393454883,1762678253927,-4451.081586,0.00020548,7]
[393454884,1762678253946,-696.053668,0.00020548,7]
[393454885,1762678253960,-4451.081586,0.00020548,7]
[393454886,1762678253979,-151.0,0.00020548,7]
[393454887,1762678253992,-151.0,0.00020548,7]
[393454888,1762678254012,-696.053668,0.00020548,7]
[393454889,1762678254026,-151.0,0.00020548,7]
[393454890,1762678254044,-4451.081586,0.00020548,7]
[393454891,1762678254062,-4451.081586,0.00020548,7]
[393454892,1762678254079,-151.0,0.00020548,7]
[393454893,1762678254095,-193.73029,0.00020548,7]
[393454894,1762678254113,-158.855802,0.00020548,7]
[393454895,1762678254129,-1035.014403,0.00020548,7]
[393454896,1762678254146,-151.0,0.00020548,7]
[393454897,1762678254163,-151.0,0.00020548,7]
[393454898,1762678254180,-151.0,0.00020548,7]
[393454899,1762678254197,-1035.014403,0.00020548,7]
[393454900,1762678254213,-151.0,0.00020548,7]
[393454901,1762678254230,-151.0,0.00020548,7]
[393454902,1762678254245,-1035.014403,0.00020548,7]
[393454903,1762678254261,-1035.014403,0.00020548,7]
[393454904,1762678254276,-181.665505,0.00020548,7]
[393454905,1762678254292,-181.665505,0.00020548,7]
[393454906,1762678254307,-181.665505,0.00020548,7]
[393454907,1762678254325,-163.721245,0.00020548,7]
[393454908,1762678254339,-181.665505,0.00020548,7]
[393454909,1762678254355,-176.311602,0.00020548,7]
[393454910,1762678254370,-176.311602,0.00020548,7]
[393454911,1762678254384,-176.311602,0.00020548,7]
[393454912,1762678254401,-176.311602,0.00020548,7]
[393454913,1762678254417,-151.0,0.00020548,7]
[393454914,1762678254432,-151.0,0.00020548,7]
[393454915,1762678254448,-170.468976,0.00020548,7]
[393454916,1762678254463,-170.468976,0.00020548,7]
[393454917,1762678254479,-995.65575,0.00020548,7]
[393454918,1762678254494,-170.468976,0.00020548,7]
[393454919,1762678254510,-170.468976,0.00020548,7]
[393454920,1762678254525,-151.0,0.00020548,7]
[393454921,1762678254541,-995.65575,0.00020548,7]
[393454922,1762678254555,-995.65575,0.00020548,7]
[393454923,1762678254571,-154.628871,0.00020548,7]
[393454924,1762678254587,-995.65575,0.00020548,7]
[393454925,1762678254603,-154.628871,0.00020548,7]
[393454926,1762678254619,-154.628871,0.00020548,7]
[393454927,1762678254632,-2567.176262,0.00020548,7]
[393454928,1762678254642,-154.628871,0.00020548,7]
[393454929,1762678254651,-2567.176262,0.00020548,7]
[393454930,1762678254661,-191.059476,0.00020548,7]
[393454931,1762678254671,-151.0,0.00020548,7]
[393454932,1762678254833,-191.059476,0.00020548,7]
[393454933,1762678254849,-2567.176262,0.00020548,7]
[393454934,1762678254859,-162.053446,0.00020548,7]
[393454935,1762678254869,-191.059476,0.00020548,7]
[393454936,1762678254880,-191.059476,0.00020548,7]
[393454937,1762678254890,-2567.176262,0.00020548,7]
[393454938,1762678254899,-151.0,0.00020548,7]
[393454939,1762678254909,-336.546776,0.00020548,7]
[393454940,1762678254919,-336.546776,0.00020548,7]
[393454941,1762678254929,-1971.292487,0.00020548,7]
[393454942,1762678254939,-151.0,0.00020548,7]
[393454943,1762678254949,-336.546776,0.00020548,7]
[393454944,1762678254959,-336.546776,0.00020548,7]
[393454945,1762678254968,-1971.292487,0.00020548,7]
[393454946,1762678254978,-338.9931,0.00020548,7]
[393454947,1762678254987,-1971.292487,0.00020548,7]
[393454948,1762678254997,-1971.292487,0.00020548,7]
[393454949,1762678255008,-338.9931,0.00020548,7]
[393454950,1762678255018,-338.9931,0.00020548,7]
[393454951,1762678255027,-298.153219,0.00020548,7]
[393454952,1762678255037,-338.9931,0.00020548,7]
[393454953,1762678255046,-298.153219,0.00020548,7]
[393454954,1762678255056,-298.153219,0.00020548,7]
[393454955,1762678255066,-298.153219,0.00020548,7]
[393454956,1762678255076,-151.0,0.00020548,7]
[393454957,1762678255086,-151.0,0.00020548,7]
[393454958,1762678255097,-151.0,0.00020548,7]
[393454959,1762678255107,-151.0,0.00020548,7]
[393454960,1762678255117,-151.0,0.00020548,7]
[393454961,1762678255127,-151.0,0.00020548,7]
[393454962,1762678255137,-151.0,0.00020548,7]
[393454963,1762678255146,-151.0,0.00020548,7]
[393454964,1762678255156,-151.0,0.00020548,7]
[393454965,1762678255167,-151.0,0.00020548,7]
[393454966,1762678255176,-151.0,0.00020548,7]
[393454967,1762678255185,-151.0,0.00020548,7]
[393454968,1762678255195,-151.0,0.00020548,7]
[393454969,1762678255205,-151.0,0.00020548,7]
[393454970,1762678255215,-151.0,0.00020548,7]
[393454971,1762678255224,-182.491487,0.00020548,7]
[393454972,1762678255234,-1205.69,0.0002059,2]
[393454973,1762678255243,-2410.69,0.0002059,2]